[Event "*** Titled Tuesday Blitz"]
[Site "Chess.com"]
[Date "2021.04.06"]
[Round "4"]
[White "tandaleo"]
[Black "prachiti01"]
[Result "1-0"]
[WhiteElo "2403"]
[BlackElo "2139"]
[TimeControl "180+1"]
[EndTime "10:41:58 PDT"]
[Termination "tandaleo won on time"]

1. Nf3 {[%clk 0:03:00.9]} 1... d5 {[%clk 0:02:56.8]} 2. g3 {[%clk 0:03:00.4]}
2... Nf6 {[%clk 0:02:55.4]} 3. Bg2 {[%clk 0:03:00.6]} 3... Bf5 {[%clk
0:02:55.2]} 4. O-O {[%clk 0:03:00.5]} 4... e6 {[%clk 0:02:54.3]} 5. c4 {[%clk
0:03:00.6]} 5... h6 {[%clk 0:02:54.5]} 6. cxd5 {[%clk 0:03:00.8]} 6... exd5
{[%clk 0:02:53.3]} 7. Qb3 {[%clk 0:02:57.6]} 7... b6 {[%clk 0:02:47.6]} 8. Nc3
{[%clk 0:02:52.8]} 8... c6 {[%clk 0:02:40.4]} 9. d3 {[%clk 0:02:17.5]} 9... Be7
{[%clk 0:02:32.4]} 10. Re1 {[%clk 0:02:04.5]} 10... O-O {[%clk 0:02:31.7]} 11.
e4 {[%clk 0:02:04.3]} 11... dxe4 {[%clk 0:02:31.8]} 12. dxe4 {[%clk 0:02:05.2]}
12... Be6 {[%clk 0:02:31.6]} 13. Qc2 {[%clk 0:02:05.2]} 13... Na6 {[%clk
0:02:18.6]} 14. Rd1 {[%clk 0:01:52.3]} 14... Qc8 {[%clk 0:02:16.1]} 15. Nd4
{[%clk 0:01:47.6]} 15... Nb4 {[%clk 0:02:09.6]} 16. Qe2 {[%clk 0:01:38.7]} 16...
Rd8 {[%clk 0:01:47.9]} 17. a3 {[%clk 0:01:27.9]} 17... Na6 {[%clk 0:01:46.3]}
18. Nxe6 {[%clk 0:01:27.7]} 18... Rxd1+ {[%clk 0:01:44]} 19. Nxd1 {[%clk
0:01:12]} 19... fxe6 {[%clk 0:01:42.9]} 20. b4 {[%clk 0:01:11.8]} 20... c5
{[%clk 0:01:39]} 21. b5 {[%clk 0:00:43.1]} 21... Nc7 {[%clk 0:01:38.1]} 22. Bb2
{[%clk 0:00:41.2]} 22... Qd7 {[%clk 0:01:30.3]} 23. a4 {[%clk 0:00:34.4]} 23...
Rd8 {[%clk 0:01:28.1]} 24. Ne3 {[%clk 0:00:34.4]} 24... Qd2 {[%clk 0:01:27.3]}
25. Qxd2 {[%clk 0:00:33.2]} 25... Rxd2 {[%clk 0:01:28.2]} 26. Be5 {[%clk
0:00:33]} 26... Bd6 {[%clk 0:01:19.4]} 27. Bxd6 {[%clk 0:00:32.6]} 27... Rxd6
{[%clk 0:01:17.2]} 28. e5 {[%clk 0:00:32.8]} 28... Rd4 {[%clk 0:01:16.6]} 29.
exf6 {[%clk 0:00:32.5]} 29... gxf6 {[%clk 0:01:17]} 30. Bc6 {[%clk 0:00:31.2]}
30... Kf7 {[%clk 0:01:11.1]} 31. a5 {[%clk 0:00:31.3]} 31... Kg6 {[%clk
0:01:06.1]} 32. axb6 {[%clk 0:00:30.3]} 32... axb6 {[%clk 0:01:06.1]} 33. Ra7
{[%clk 0:00:30.3]} 33... Nd5 {[%clk 0:01:06.1]} 34. Nxd5 {[%clk 0:00:29.2]}
34... exd5 {[%clk 0:01:06.2]} 35. Rd7 {[%clk 0:00:29.3]} 35... Rd1+ {[%clk
0:01:03.7]} 36. Kg2 {[%clk 0:00:29.2]} 36... d4 {[%clk 0:01:04.1]} 37. Be4+
{[%clk 0:00:20.8]} 37... f5 {[%clk 0:01:03.7]} 38. Rd6+ {[%clk 0:00:20.8]} 38...
Kg7 {[%clk 0:00:59]} 39. Bxf5 {[%clk 0:00:21]} 39... c4 {[%clk 0:00:58]} 40. Kf3
{[%clk 0:00:20.2]} 40... c3 {[%clk 0:00:42.8]} 41. Ke4 {[%clk 0:00:14]} 41... c2
{[%clk 0:00:40.5]} 42. Rc6 {[%clk 0:00:13.3]} 42... c1=Q {[%clk 0:00:38.5]} 43.
Rxc1 {[%clk 0:00:13.5]} 43... Rxc1 {[%clk 0:00:37.9]} 44. Kxd4 {[%clk
0:00:14.1]} 44... Kf6 {[%clk 0:00:37.7]} 45. Be4 {[%clk 0:00:14]} 45... Rc5
{[%clk 0:00:37]} 46. Bc6 {[%clk 0:00:14.2]} 46... Kf5 {[%clk 0:00:34]} 47. Ke3
{[%clk 0:00:13.6]} 47... Rc3+ {[%clk 0:00:29.9]} 48. Ke2 {[%clk 0:00:08.6]}
48... Ke5 {[%clk 0:00:27.1]} 49. h4 {[%clk 0:00:07]} 49... Rc2+ {[%clk
0:00:24.2]} 50. Ke3 {[%clk 0:00:07.3]} 50... Rc3+ {[%clk 0:00:23.6]} 51. Ke2
{[%clk 0:00:07.8]} 51... Kd4 {[%clk 0:00:23.4]} 52. g4 {[%clk 0:00:06.8]} 52...
Rh3 {[%clk 0:00:19.6]} 53. h5 {[%clk 0:00:07.1]} 53... Ra3 {[%clk 0:00:16.2]}
54. f3 {[%clk 0:00:04.9]} 54... Ke5 {[%clk 0:00:15.3]} 55. Kf2 {[%clk
0:00:04.1]} 55... Kf4 {[%clk 0:00:15.2]} 56. Kg2 {[%clk 0:00:04.2]} 56... Ra2+
{[%clk 0:00:14.9]} 57. Kf1 {[%clk 0:00:04.6]} 57... Rh2 {[%clk 0:00:11.9]} 58.
Ke1 {[%clk 0:00:04]} 58... Ra2 {[%clk 0:00:10.6]} 59. Kd1 {[%clk 0:00:04.4]}
59... Ke3 {[%clk 0:00:10.4]} 60. Kc1 {[%clk 0:00:04.6]} 60... Rh2 {[%clk
0:00:09.4]} 61. Be4 {[%clk 0:00:03.6]} 61... Kf4 {[%clk 0:00:06.1]} 62. Kd1
{[%clk 0:00:02.8]} 62... Ra2 {[%clk 0:00:05.4]} 63. Bc6 {[%clk 0:00:02.9]} 63...
Rb2 {[%clk 0:00:05.1]} 64. Kc1 {[%clk 0:00:03.4]} 64... Rh2 {[%clk 0:00:04.7]}
65. Be4 {[%clk 0:00:03.6]} 65... Ke3 {[%clk 0:00:04.2]} 66. Bc6 {[%clk
0:00:02.9]} 66... Kd3 {[%clk 0:00:02.8]} 67. Be4+ {[%clk 0:00:03]} 67... Kc3
{[%clk 0:00:02.1]} 68. Kd1 {[%clk 0:00:03.4]} 68... Rh1+ {[%clk 0:00:01.5]} 69.
Ke2 {[%clk 0:00:03.8]} 69... Kd4 {[%clk 0:00:01.6]} 70. Bc6 {[%clk 0:00:04]}
70... Rh2+ {[%clk 0:00:01.1]} 71. Kf1 {[%clk 0:00:04]} 71... Ke3 {[%clk
0:00:01.3]} 72. Kg1 {[%clk 0:00:04.3]} 1-0

[Event "*** Titled Tuesday Blitz"]
[Site "Chess.com"]
[Date "2021.04.06"]
[Round "4"]
[White "Yurovskykh_Oleksandr"]
[Black "CakeinSpace2002"]
[Result "1-0"]
[WhiteElo "2519"]
[BlackElo "2313"]
[TimeControl "180+1"]
[EndTime "10:42:15 PDT"]
[Termination "Yurovskykh_Oleksandr won by resignation"]

1. d4 {[%clk 0:03:00.9]} 1... c5 {[%clk 0:02:59.3]} 2. c3 {[%clk 0:03:00.5]}
2... Nf6 {[%clk 0:02:58.3]} 3. Nf3 {[%clk 0:02:56.6]} 3... cxd4 {[%clk
0:02:58.3]} 4. cxd4 {[%clk 0:02:56.5]} 4... d5 {[%clk 0:02:59.2]} 5. Nc3 {[%clk
0:02:56.2]} 5... Nc6 {[%clk 0:02:59.4]} 6. Bf4 {[%clk 0:02:54.8]} 6... a6 {[%clk
0:02:57.7]} 7. Rc1 {[%clk 0:02:52.7]} 7... e6 {[%clk 0:02:56.7]} 8. e3 {[%clk
0:02:51.9]} 8... Be7 {[%clk 0:02:54.5]} 9. Bd3 {[%clk 0:02:51.6]} 9... O-O
{[%clk 0:02:54.5]} 10. O-O {[%clk 0:02:49]} 10... Bd7 {[%clk 0:02:54.2]} 11. Qe2
{[%clk 0:02:38.6]} 11... Rc8 {[%clk 0:02:45.5]} 12. Ne5 {[%clk 0:02:37.4]} 12...
Na5 {[%clk 0:02:41.1]} 13. Bg5 {[%clk 0:02:30.7]} 13... Nc4 {[%clk 0:02:38.7]}
14. Nxc4 {[%clk 0:02:26]} 14... dxc4 {[%clk 0:02:38.5]} 15. Bxc4 {[%clk
0:02:26.1]} 15... Qb6 {[%clk 0:02:22.8]} 16. Bd3 {[%clk 0:02:13]} 16... Rc7
{[%clk 0:02:19.3]} 17. Bxf6 {[%clk 0:01:54.4]} 17... Bxf6 {[%clk 0:02:18]} 18.
Ne4 {[%clk 0:01:54.6]} 18... Be7 {[%clk 0:02:16.6]} 19. Rxc7 {[%clk 0:01:45.7]}
19... Qxc7 {[%clk 0:02:17.5]} 20. Nc3 {[%clk 0:01:31.5]} 20... Bd6 {[%clk
0:02:10.5]} 21. g3 {[%clk 0:01:28.9]} 21... Rc8 {[%clk 0:02:10.5]} 22. Rc1
{[%clk 0:01:28.9]} 22... Qa5 {[%clk 0:02:09.6]} 23. Qc2 {[%clk 0:01:14.3]} 23...
h6 {[%clk 0:02:05.2]} 24. Qb1 {[%clk 0:01:14.3]} 24... Bb4 {[%clk 0:01:57.1]}
25. Ne2 {[%clk 0:00:54]} 25... Rxc1+ {[%clk 0:01:50]} 26. Nxc1 {[%clk
0:00:54.9]} 26... Bc6 {[%clk 0:01:49.4]} 27. Be4 {[%clk 0:00:46.3]} 27... Bxe4
{[%clk 0:01:34.7]} 28. Qxe4 {[%clk 0:00:47.2]} 28... Bd2 {[%clk 0:01:35.5]} 29.
Nb3 {[%clk 0:00:45.3]} 29... Qb4 {[%clk 0:01:32.3]} 30. Nxd2 {[%clk 0:00:44.5]}
30... Qxd2 {[%clk 0:01:33.2]} 31. Qxb7 {[%clk 0:00:44.5]} 31... a5 {[%clk
0:01:33]} 32. Kg2 {[%clk 0:00:37.7]} 32... g6 {[%clk 0:01:32.5]} 33. a4 {[%clk
0:00:37.5]} 33... h5 {[%clk 0:01:31.6]} 34. h4 {[%clk 0:00:36.8]} 34... Kg7
{[%clk 0:01:31.5]} 35. b3 {[%clk 0:00:36.3]} 35... Qc3 {[%clk 0:01:30.9]} 36.
Qb5 {[%clk 0:00:36.5]} 36... Qd2 {[%clk 0:01:27.9]} 37. Qe5+ {[%clk 0:00:34.6]}
37... Kg8 {[%clk 0:01:26.6]} 38. Qc5 {[%clk 0:00:35.5]} 38... Qd3 {[%clk
0:01:20.3]} 39. Qc8+ {[%clk 0:00:35.6]} 39... Kg7 {[%clk 0:01:20.2]} 40. Qa8
{[%clk 0:00:35.5]} 40... Qxb3 {[%clk 0:01:19.1]} 41. Qxa5 {[%clk 0:00:35.4]}
41... Qc2 {[%clk 0:01:18.9]} 42. Qa8 {[%clk 0:00:33.8]} 42... g5 {[%clk
0:01:08.1]} 43. hxg5 {[%clk 0:00:30.6]} 43... h4 {[%clk 0:01:08.3]} 44. Qf3
{[%clk 0:00:20.6]} 44... hxg3 {[%clk 0:01:04.3]} 45. Kxg3 {[%clk 0:00:19.6]}
45... Qxa4 {[%clk 0:01:04.2]} 46. Qf6+ {[%clk 0:00:20.1]} 46... Kg8 {[%clk
0:01:02.9]} 47. g6 {[%clk 0:00:20.3]} 47... fxg6 {[%clk 0:01:02.2]} 48. Qxg6+
{[%clk 0:00:20.8]} 48... Kh8 {[%clk 0:01:02.5]} 49. Qh6+ {[%clk 0:00:20.3]}
49... Kg8 {[%clk 0:01:02.5]} 50. Qxe6+ {[%clk 0:00:21.2]} 50... Kf8 {[%clk
0:01:03]} 51. Qf5+ {[%clk 0:00:21.4]} 51... Kg8 {[%clk 0:01:02.3]} 52. Qg5+
{[%clk 0:00:21.8]} 52... Kf8 {[%clk 0:01:02.3]} 53. Qc5+ {[%clk 0:00:22]} 53...
Kg8 {[%clk 0:01:02.3]} 54. d5 {[%clk 0:00:22.6]} 54... Qd1 {[%clk 0:01:01.4]}
55. Qc8+ {[%clk 0:00:22.3]} 55... Kg7 {[%clk 0:01:00.9]} 56. Qd7+ {[%clk
0:00:22.6]} 56... Kg6 {[%clk 0:00:59.9]} 57. Qe6+ {[%clk 0:00:22.8]} 57... Kh7
{[%clk 0:00:59.5]} 58. d6 {[%clk 0:00:20.3]} 58... Qg1+ {[%clk 0:00:58.5]} 59.
Kf3 {[%clk 0:00:20.3]} 59... Qd1+ {[%clk 0:00:55]} 60. Kf4 {[%clk 0:00:20]}
60... Qg1 {[%clk 0:00:48.9]} 61. Qf7+ {[%clk 0:00:18.8]} 61... Kh8 {[%clk
0:00:48.5]} 62. Qf6+ {[%clk 0:00:19.1]} 62... Kh7 {[%clk 0:00:48.2]} 63. Qe7+
{[%clk 0:00:19.1]} 63... Kh8 {[%clk 0:00:47.3]} 64. d7 {[%clk 0:00:19.3]} 64...
Qxf2+ {[%clk 0:00:47]} 65. Ke4 {[%clk 0:00:19]} 65... Qc2+ {[%clk 0:00:46.9]}
66. Ke5 {[%clk 0:00:18.9]} 66... Qc3+ {[%clk 0:00:46.7]} 67. Kf5 {[%clk
0:00:16.6]} 67... Qc2+ {[%clk 0:00:45.6]} 68. e4 {[%clk 0:00:16.2]} 68... Qf2+
{[%clk 0:00:45.4]} 69. Ke5 {[%clk 0:00:16.2]} 69... Qg3+ {[%clk 0:00:45.2]} 70.
Kd5 {[%clk 0:00:16.2]} 70... Qd3+ {[%clk 0:00:44.5]} 71. Kc6 {[%clk 0:00:15.9]}
71... Qa6+ {[%clk 0:00:43.7]} 72. Kc7 {[%clk 0:00:14.8]} 72... Qa7+ {[%clk
0:00:43.6]} 73. Kd6 {[%clk 0:00:14.2]} 73... Qd4+ {[%clk 0:00:41]} 74. Kc6
{[%clk 0:00:08.8]} 74... Qa4+ {[%clk 0:00:33.6]} 75. Kd5 {[%clk 0:00:09.1]}
75... Qb3+ {[%clk 0:00:30.6]} 76. Ke5 {[%clk 0:00:09.1]} 76... Qc3+ {[%clk
0:00:30.5]} 77. Kd5 {[%clk 0:00:07.5]} 77... Qd3+ {[%clk 0:00:30.1]} 78. Kc6
{[%clk 0:00:08]} 78... Qa6+ {[%clk 0:00:29.1]} 79. Kc7 {[%clk 0:00:08.4]} 79...
Qa7+ {[%clk 0:00:28.9]} 80. Kd6 {[%clk 0:00:08.6]} 80... Qd4+ {[%clk 0:00:27.6]}
81. Ke6 {[%clk 0:00:03.8]} 81... Qxe4+ {[%clk 0:00:27.1]} 82. Kf7 {[%clk
0:00:04.3]} 82... Qc4+ {[%clk 0:00:20.6]} 83. Ke8 {[%clk 0:00:05]} 83... Qc6
{[%clk 0:00:18.9]} 84. Kf7 {[%clk 0:00:04.7]} 84... Qf3+ {[%clk 0:00:17.8]} 85.
Qf6+ {[%clk 0:00:04.9]} 1-0

[Event "*** Titled Tuesday Blitz"]
[Site "Chess.com"]
[Date "2021.04.06"]
[Round "4"]
[White "vrekhson"]
[Black "powermove"]
[Result "1/2-1/2"]
[WhiteElo "2197"]
[BlackElo "1653"]
[TimeControl "180+1"]
[EndTime "10:42:27 PDT"]
[Termination "Game drawn by agreement"]

1. e4 {[%clk 0:03:00.9]} 1... e5 {[%clk 0:02:53.3]} 2. Nf3 {[%clk 0:03:00.7]}
2... Nc6 {[%clk 0:02:51.5]} 3. Bb5 {[%clk 0:03:00.6]} 3... a6 {[%clk 0:02:47.1]}
4. Ba4 {[%clk 0:03:00.3]} 4... Nf6 {[%clk 0:02:46.6]} 5. O-O {[%clk 0:02:59.9]}
5... Be7 {[%clk 0:02:46.1]} 6. Re1 {[%clk 0:02:59.9]} 6... b5 {[%clk 0:02:46]}
7. Bb3 {[%clk 0:03:00.2]} 7... O-O {[%clk 0:02:45.8]} 8. h3 {[%clk 0:02:53.7]}
8... d6 {[%clk 0:02:38.1]} 9. c3 {[%clk 0:02:52.4]} 9... Bb7 {[%clk 0:02:34.3]}
10. d4 {[%clk 0:02:51.7]} 10... h6 {[%clk 0:02:29.8]} 11. Nbd2 {[%clk
0:02:49.4]} 11... Re8 {[%clk 0:02:28.3]} 12. Nf1 {[%clk 0:02:49.5]} 12... Bf8
{[%clk 0:02:28]} 13. Ng3 {[%clk 0:02:49.8]} 13... g6 {[%clk 0:02:28.1]} 14. Bc2
{[%clk 0:02:33.3]} 14... Bg7 {[%clk 0:02:23.5]} 15. d5 {[%clk 0:02:00.3]} 15...
Nb8 {[%clk 0:02:16.3]} 16. a4 {[%clk 0:01:58.9]} 16... c6 {[%clk 0:02:10]} 17.
dxc6 {[%clk 0:01:52.6]} 17... Bxc6 {[%clk 0:02:04.8]} 18. axb5 {[%clk
0:01:50.7]} 18... axb5 {[%clk 0:02:04.1]} 19. Rxa8 {[%clk 0:01:46.8]} 19... Bxa8
{[%clk 0:02:03.9]} 20. Qe2 {[%clk 0:01:43.8]} 20... Bc6 {[%clk 0:01:56.4]} 21.
Rd1 {[%clk 0:01:42.8]} 21... Qc7 {[%clk 0:01:55]} 22. Bd3 {[%clk 0:01:41.2]}
22... Qb7 {[%clk 0:01:52.6]} 23. Nd2 {[%clk 0:01:32.2]} 23... Nbd7 {[%clk
0:01:47.1]} 24. Nb3 {[%clk 0:01:31.9]} 24... Ra8 {[%clk 0:01:35.5]} 25. Bc2
{[%clk 0:01:20.5]} 25... Bf8 {[%clk 0:01:34.4]} 26. f4 {[%clk 0:00:59.1]} 26...
exf4 {[%clk 0:01:22.1]} 27. Bxf4 {[%clk 0:01:00]} 27... Ne5 {[%clk 0:01:21.5]}
28. Nd2 {[%clk 0:00:42]} 28... Ra2 {[%clk 0:01:16]} 29. Rb1 {[%clk 0:00:40.2]}
29... Qa8 {[%clk 0:00:36.9]} 30. Bb3 {[%clk 0:00:34]} 30... Ra1 {[%clk
0:00:36.3]} 31. Kh2 {[%clk 0:00:33]} 31... Rxb1 {[%clk 0:00:36]} 32. Nxb1 {[%clk
0:00:33.9]} 32... Qa1 {[%clk 0:00:35.9]} 33. Na3 {[%clk 0:00:25]} 33... h5
{[%clk 0:00:16.1]} 34. Nxb5 {[%clk 0:00:24.5]} 34... h4 {[%clk 0:00:15.2]} 35.
Bxe5 {[%clk 0:00:15]} 35... dxe5 {[%clk 0:00:13.4]} 36. Nf1 {[%clk 0:00:14.8]}
36... Nxe4 {[%clk 0:00:13]} 37. Ne3 {[%clk 0:00:12.3]} 37... Ng3 {[%clk
0:00:11.8]} 38. Qd1 {[%clk 0:00:10]} 38... Qxd1 {[%clk 0:00:11.5]} 39. Nxd1
{[%clk 0:00:08.9]} 39... Bc5 {[%clk 0:00:10.9]} 40. Nc7 {[%clk 0:00:07.7]} 40...
e4 {[%clk 0:00:07.2]} 41. Nd5 {[%clk 0:00:07]} 41... Bd6 {[%clk 0:00:06.9]} 42.
Kg1 {[%clk 0:00:06.7]} 42... Bc5+ {[%clk 0:00:06.1]} 43. N5e3 {[%clk 0:00:03.6]}
43... Nf5 {[%clk 0:00:05.6]} 44. Kf2 {[%clk 0:00:03.7]} 44... Kg7 {[%clk
0:00:05]} 45. Ke2 {[%clk 0:00:03.7]} 45... Nxe3 {[%clk 0:00:04.9]} 46. Nxe3
{[%clk 0:00:04.6]} 46... f5 {[%clk 0:00:04.9]} 47. Bc2 {[%clk 0:00:04.4]} 47...
f4 {[%clk 0:00:04.8]} 48. Nc4 {[%clk 0:00:04.9]} 48... f3+ {[%clk 0:00:05]} 49.
gxf3 {[%clk 0:00:05.6]} 49... exf3+ {[%clk 0:00:05.6]} 50. Kf1 {[%clk
0:00:06.1]} 50... Bb5 {[%clk 0:00:05.5]} 51. b3 {[%clk 0:00:05.9]} 51... Bxc4+
{[%clk 0:00:05.5]} 52. bxc4 {[%clk 0:00:06.8]} 52... Kf6 {[%clk 0:00:05.4]} 53.
Be4 {[%clk 0:00:07]} 53... f2 {[%clk 0:00:04.7]} 54. Bd3 {[%clk 0:00:06]} 54...
g5 {[%clk 0:00:04.9]} 55. Be2 {[%clk 0:00:06.2]} 55... Ke5 {[%clk 0:00:04.9]}
56. Bg4 {[%clk 0:00:06.3]} 56... Kf4 {[%clk 0:00:05.1]} 57. Kg2 {[%clk 0:00:06]}
57... Ke3 {[%clk 0:00:04.8]} 58. Be6 {[%clk 0:00:05.4]} 58... Kd2 {[%clk
0:00:04.8]} 59. Bd5 {[%clk 0:00:05.7]} 59... Kxc3 {[%clk 0:00:04.8]} 60. Kf1
{[%clk 0:00:05.3]} 60... Kd2 {[%clk 0:00:05]} 61. Bf3 {[%clk 0:00:05.1]} 61...
Ke3 {[%clk 0:00:05.1]} 62. Bd5 {[%clk 0:00:05.5]} 62... Kf4 {[%clk 0:00:05.2]}
63. Bg2 {[%clk 0:00:05.8]} 63... g4 {[%clk 0:00:05.1]} 64. hxg4 {[%clk
0:00:06.7]} 64... Kxg4 {[%clk 0:00:05.8]} 65. Bh1 {[%clk 0:00:06.6]} 65... Kg3
{[%clk 0:00:05.8]} 66. Bd5 {[%clk 0:00:07.5]} 66... h3 {[%clk 0:00:05.3]} 67.
Bh1 {[%clk 0:00:07.4]} 67... Kh2 {[%clk 0:00:05]} 68. Bd5 {[%clk 0:00:07.5]}
68... Bd4 {[%clk 0:00:05.4]} 69. Be4 {[%clk 0:00:06.6]} 69... Kg3 {[%clk
0:00:05]} 70. Bh1 {[%clk 0:00:06.6]} 70... Kh2 {[%clk 0:00:04.3]} 71. Bd5 {[%clk
0:00:07.2]} 71... Kg3 {[%clk 0:00:04.4]} 72. Bc6 {[%clk 0:00:06.8]} 72... Kf4
{[%clk 0:00:04.9]} 73. Bd5 {[%clk 0:00:05.9]} 73... Ke5 {[%clk 0:00:05.5]} 74.
Bh1 {[%clk 0:00:05.9]} 74... Kd6 {[%clk 0:00:06.2]} 75. Ke2 {[%clk 0:00:06.2]}
75... Kc5 {[%clk 0:00:06.9]} 76. Bd5 {[%clk 0:00:05.5]} 76... h2 {[%clk
0:00:06.8]} 77. Kf1 {[%clk 0:00:04.9]} 77... h1=Q+ {[%clk 0:00:05.2]} 78. Bxh1
{[%clk 0:00:05]} 78... Kxc4 {[%clk 0:00:06.1]} 79. Be4 {[%clk 0:00:05.1]} 79...
Kc3 {[%clk 0:00:07]} 80. Bf5 {[%clk 0:00:04.8]} 80... Kd2 {[%clk 0:00:07.9]} 81.
Bg6 {[%clk 0:00:03.7]} 81... Ke3 {[%clk 0:00:08.8]} 82. Bf5 {[%clk 0:00:03.1]}
82... Kf4 {[%clk 0:00:09.7]} 83. Bg6 {[%clk 0:00:03.3]} 83... Kg3 {[%clk
0:00:10.3]} 84. Bf7 {[%clk 0:00:03.6]} 84... Kf4 {[%clk 0:00:11.2]} 85. Be8
{[%clk 0:00:03.7]} 85... Kg5 {[%clk 0:00:12.1]} 86. Bd7 {[%clk 0:00:02.3]} 86...
Kf4 {[%clk 0:00:13]} 87. Bh3 {[%clk 0:00:02.2]} 87... Kg5 {[%clk 0:00:13.9]} 88.
Bd7 {[%clk 0:00:02.7]} 88... Kf4 {[%clk 0:00:14.8]} 89. Bc8 {[%clk 0:00:03.6]}
89... Ke3 {[%clk 0:00:14.9]} 90. Bb7 {[%clk 0:00:04.5]} 90... Kd2 {[%clk
0:00:14.1]} 91. Ba8 {[%clk 0:00:05.4]} 91... Be3 {[%clk 0:00:13.5]} 92. Bb7
{[%clk 0:00:06.3]} 92... Bf4 {[%clk 0:00:14.2]} 93. Ba8 {[%clk 0:00:07.2]} 93...
Be5 {[%clk 0:00:14.3]} 94. Bb7 {[%clk 0:00:08.1]} 94... Bd6 {[%clk 0:00:14.2]}
95. Ba8 {[%clk 0:00:09]} 95... Bc7 {[%clk 0:00:14.3]} 96. Bb7 {[%clk 0:00:09.9]}
96... Bb6 {[%clk 0:00:13.5]} 97. Ba8 {[%clk 0:00:10.8]} 97... Ke3 {[%clk
0:00:13.5]} 98. Bb7 {[%clk 0:00:11.7]} 98... Kf4 {[%clk 0:00:13.4]} 99. Ba8
{[%clk 0:00:12.6]} 1/2-1/2